bitfinex/quotes_BTCUSD_20251202
["timestamp","ask_amount","ask_price","bid_price","bid_amount"]
[1764697840619,0.21824593,91640.0,91638.0,0.01732]
[1764697840792,0.01091214,91641.0,91638.0,0.01732]
[1764697841047,0.22915594,91641.0,91638.0,0.01732]
[1764697841251,0.01912,91642.0,91641.0,0.21824292]
[1764697841476,0.218216,91653.0,91649.0,0.21822355]
[1764697841647,0.0004,91660.0,91649.0,0.21822355]
[1764697841648,0.0004,91660.0,91651.0,0.0287]
[1764697841965,0.01130988,91660.0,91651.0,0.0287]
[1764697842124,0.22950774,91660.0,91651.0,0.0287]
[1764697842330,0.01091024,91657.0,91651.0,0.0287]
[1764697842494,0.22911572,91657.0,91651.0,0.0287]
[1764697842911,0.22911572,91657.0,91651.0,0.0337]
[1764697843108,0.01091024,91657.0,91651.0,0.005]
[1764697843442,0.06640568,91652.0,91651.0,0.005]
[1764697844017,0.06640568,91652.0,91651.0,0.006]
[1764697844211,0.28462241,91652.0,91651.0,0.006]
[1764697844433,0.28462241,91652.0,91651.0,0.005]
[1764697844658,0.28462241,91652.0,91637.0,0.01732]
[1764697844659,0.21824792,91639.0,91637.0,0.01732]
[1764697845064,0.00011568,91652.0,91639.0,0.22916006]
[1764697845262,0.01091202,91642.0,91637.0,0.01732]
[1764697845460,0.21824881,91639.0,91637.0,0.23557237]
[1764697845719,0.01091202,91642.0,91638.0,0.1464]
[1764697845720,0.22915449,91642.0,91638.0,0.1464]
[1764697845873,0.01091214,91641.0,91638.0,0.1464]
[1764697846079,0.24734768,91639.0,91638.0,0.1464]
[1764697846348,0.21826436,91632.0,91631.0,0.1464]
[1764697847917,0.21926436,91632.0,91631.0,0.1464]
[1764697851533,0.24836436,91632.0,91631.0,0.1464]
[1764697851773,0.24836436,91632.0,91630.0,1.99974237]
[1764697851774,0.21826674,91631.0,91630.0,1.99974237]
[1764697851988,0.28455674,91631.0,91630.0,1.99974237]
[1764697852285,0.24736674,91631.0,91630.0,1.99974237]
[1764697853290,0.21826674,91631.0,91630.0,2.00374237]
[1764697853491,0.21826674,91631.0,91630.0,2.00474237]
[1764697853901,0.24736674,91631.0,91630.0,2.00474237]
[1764697854104,0.28455674,91631.0,91630.0,2.00474237]
[1764697854772,0.30645777,91631.0,91630.0,2.00474237]
[1764697855135,0.28455674,91631.0,91630.0,2.00474237]
[1764697855541,0.28455674,91631.0,91630.0,1.99974237]
[1764697855739,0.28455674,91631.0,91630.0,2.00474237]
[1764697860286,0.24736674,91631.0,91630.0,2.00474237]
[1764697860690,0.30645777,91631.0,91630.0,2.00474237]
[1764697861186,0.28455674,91631.0,91630.0,2.00474237]
[1764697863104,0.30645777,91631.0,91630.0,2.00474237]
[1764697863319,0.30645777,91631.0,91630.0,0.65732098]
[1764697863320,0.69198076,91631.0,91630.0,0.65732098]
[1764697863459,0.69198076,91631.0,91630.0,0.10284964]
[1764697863805,0.72476658,91631.0,91630.0,0.10284964]
[1764697864239,0.72476658,91631.0,91630.0,0.10184964]
[1764697864572,0.72476658,91631.0,91630.0,0.09784964]
[1764697864775,0.74208658,91631.0,91630.0,0.09784964]
[1764697865028,0.70930076,91631.0,91630.0,0.09784964]
[1764697865163,0.36439973,91631.0,91630.0,0.09784964]
[1764697865368,0.38630076,91631.0,91630.0,0.09784964]
[1764697865578,0.70930076,91631.0,91630.0,0.09784964]
[1764697866040,0.70930076,91631.0,91630.0,0.09984964]
[1764697867097,0.70930076,91631.0,91630.0,0.09884964]
[1764697867527,0.70930076,91631.0,91630.0,0.10084964]
[1764697868160,0.70930076,91631.0,91630.0,0.09784964]
[1764697868612,0.70930076,91631.0,91630.0,0.09884964]
[1764697873323,0.70930076,91631.0,91630.0,0.09784964]
[1764697873667,0.70930076,91631.0,91630.0,0.09984964]
[1764697875554,0.69198076,91631.0,91630.0,0.09984964]
[1764697875848,0.70930076,91631.0,91630.0,0.09984964]
[1764697876141,0.60755674,91631.0,91630.0,0.09984964]
[1764697876309,0.62487674,91631.0,91630.0,0.09984964]
[1764697876526,0.28455674,91631.0,91630.0,0.09984964]
[1764697876912,0.30645777,91631.0,91630.0,0.09984964]
[1764697877474,0.30645777,91631.0,91630.0,0.09784964]
[1764697878313,0.30645777,91631.0,91630.0,0.10084964]
[1764697878736,0.36898076,91631.0,91630.0,0.10084964]
[1764697878948,0.36898076,91631.0,91630.0,0.10184964]
[1764697879663,0.69198076,91631.0,91630.0,0.10184964]
[1764697882612,0.71550972,91631.0,91630.0,0.10184964]
[1764697884991,0.37060869,91631.0,91630.0,0.10184964]
[1764697885357,0.34707973,91631.0,91630.0,0.10184964]
[1764697886344,0.36898076,91631.0,91630.0,0.10184964]
[1764697887326,0.71552192,91631.0,91630.0,0.10184964]
[1764697887720,0.74830534,91631.0,91630.0,0.10184964]
[1764697888540,0.72640431,91631.0,91630.0,0.10184964]
[1764697888741,0.74830534,91631.0,91630.0,0.10184964]
[1764697889977,0.74830534,91631.0,91630.0,0.10184964]
[1764697891499,0.73284192,91631.0,91630.0,0.10184964]
[1764697892032,0.71552192,91631.0,91630.0,0.10184964]
[1764697892352,0.73284192,91631.0,91630.0,0.10184964]
[1764697894951,0.76343192,91631.0,91630.0,0.10184964]
[1764697898512,0.77129192,91631.0,91630.0,0.10184964]
[1764697899158,0.77129192,91631.0,91630.0,0.09784964]
[1764697899982,0.77129192,91631.0,91630.0,1e-08]
[1764697899983,0.80073987,91631.0,91630.0,1e-08]
[1764697900197,0.77129192,91631.0,91630.0,1e-08]
[1764697900831,0.74939089,91631.0,91630.0,1e-08]
[1764697900978,0.75397192,91631.0,91630.0,1e-08]
[1764697901385,0.77129192,91631.0,91630.0,1e-08]
[1764697904978,0.80073279,91631.0,91630.0,1e-08]
[1764697905352,0.77129192,91631.0,91630.0,1e-08]
[1764697908150,0.80407878,91631.0,91630.0,1e-08]
[1764697908369,0.83351965,91631.0,91630.0,1e-08]
[1764697909972,0.80407878,91631.0,91630.0,1e-08]
[1764697910174,0.01091881,91585.0,91578.0,0.1464]
[1764697910402,0.30142554,91583.0,91578.0,0.1464]
[1764697910655,0.32332657,91583.0,91554.0,0.06183]
[1764697910865,0.38669657,91583.0,91561.0,0.03083]
[1764697911069,0.38669657,91583.0,91556.0,0.00197656]
[1764697911271,0.70969657,91583.0,91582.0,0.00028817]
[1764697912097,0.68779554,91583.0,91582.0,0.00428817]
[1764697912293,0.70969657,91583.0,91582.0,0.00028817]
[1764697912845,0.70969657,91583.0,91582.0,0.00328817]
[1764697913257,0.77221956,91583.0,91582.0,0.00428817]
[1764697913595,0.70511554,91583.0,91582.0,0.00328817]
[1764697913793,0.70511554,91583.0,91582.0,0.00028817]
[1764697914015,0.70511554,91583.0,91582.0,0.00128817]
[1764697914223,0.70511554,91583.0,91582.0,0.00328817]
[1764697914612,0.70511554,91583.0,91582.0,0.00228817]
[1764697914806,0.70511554,91583.0,91582.0,0.00128817]
[1764697915010,0.70969657,91583.0,91582.0,0.00128817]
[1764697915233,0.70969657,91583.0,91582.0,0.00428817]
[1764697915234,0.72701657,91583.0,91582.0,0.00428817]
[1764697915928,0.78953956,91583.0,91582.0,0.00428817]
[1764697916365,0.78953956,91583.0,91582.0,0.00328817]
[1764697916579,0.78953956,91583.0,91582.0,0.00428817]
[1764697916785,0.78953956,91583.0,91582.0,0.00128817]
[1764697916995,0.78953956,91583.0,91582.0,0.00028817]
[1764697917222,0.78953956,91583.0,91582.0,0.00128817]
[1764697917835,0.70969657,91583.0,91582.0,0.00128817]
[1764697917985,0.72701657,91583.0,91582.0,0.00128817]
[1764697918426,0.75981472,91583.0,91582.0,0.00028817]
[1764697918625,0.75981472,91583.0,91582.0,0.00228817]
[1764697919972,0.82233771,91583.0,91582.0,0.00228817]
[1764697921360,0.84494424,91583.0,91582.0,0.00228817]
[1764697921554,0.24033941,91559.0,91558.0,0.1464]
[1764697921760,0.24034418,91557.0,91556.0,0.00197656]
[1764697921962,0.28123418,91557.0,91556.0,0.00236208]
[1764697922095,0.34460418,91557.0,91556.0,0.00236208]
[1764697922505,0.32270315,91557.0,91556.0,0.00236208]
[1764697923227,0.64570315,91557.0,91556.0,0.00336208]
[1764697924103,0.82129572,91557.0,91556.0,0.00536208]
[1764697924309,0.73012717,91557.0,91556.0,1e-08]
[1764697924516,0.74744717,91557.0,91556.0,1e-08]
[1764697925809,0.24038236,91541.0,91540.0,0.0002]
[1764697926035,0.29174676,91541.0,91540.0,0.0002]
[1764697926200,0.35135676,91541.0,91540.0,0.0002]
[1764697927019,0.35135676,91541.0,91540.0,0.0012]
[1764697927220,0.35135676,91541.0,91540.0,0.0042]
[1764697927422,0.35135676,91541.0,91540.0,0.00542624]
[1764697927624,0.01772,91541.0,91540.0,0.00542624]
[1764697928025,0.21848006,91542.0,91540.0,0.00542624]
[1764697928210,0.0163244,91545.0,91540.0,0.01512418]
[1764697928413,0.22939903,91544.0,91540.0,0.0042]
[1764697928608,0.21847906,91542.0,91540.0,0.0042]
[1764697928811,0.0109237,91544.0,91540.0,0.23260768]
[1764697929006,0.22940081,91543.0,91540.0,0.0002]
[1764697929330,0.21848009,91542.0,91540.0,0.0032]
[1764697929658,0.21848009,91542.0,91540.0,0.0002]
[1764697929798,0.21848009,91542.0,91540.0,0.0032]
[1764697930004,0.03999,91541.0,91540.0,0.0042]
[1764697930206,0.12150103,91541.0,91540.0,0.0012]
[1764697930433,0.12150103,91541.0,91540.0,0.0002]
[1764697930641,0.12150103,91541.0,91540.0,0.0032]
[1764697930858,0.12150103,91541.0,91540.0,0.0002]
[1764697931188,0.0996,91541.0,91540.0,0.0002]
[1764697931509,0.25847133,91541.0,91540.0,0.0002]
[1764697931654,0.21848063,91542.0,91540.0,0.0012]
[1764697931860,0.02559,91560.0,91540.0,0.0012]
[1764697931861,0.21846463,91548.0,91543.0,0.22940008]
[1764697932077,0.01092347,91546.0,91540.0,0.0032]
[1764697932276,0.01092382,91543.0,91540.0,0.0032]
[1764697932512,0.21847894,91542.0,91540.0,0.0002]
[1764697932713,0.0109237,91544.0,91540.0,0.23260728]
[1764697932912,0.22939812,91544.0,91541.0,0.21848029]
[1764697933139,0.21847945,91542.0,91540.0,0.0012]
[1764697933349,0.01092382,91543.0,91540.0,0.0012]
[1764697933553,0.21847894,91542.0,91540.0,0.0002]
[1764697933775,0.21847894,91542.0,91540.0,0.0032]
[1764697933971,0.21847894,91542.0,91540.0,0.0002]
[1764697934172,0.02724798,91545.0,91542.0,0.01092394]
[1764697934369,0.21847673,91543.0,91541.0,0.22940539]
[1764697934547,0.0163244,91545.0,91543.0,0.21847641]
[1764697934758,0.02724798,91545.0,91542.0,0.01092394]
[1764697934958,0.0163244,91545.0,91542.0,0.01092394]
[1764697935367,0.02559,91560.0,91553.0,0.01092263]
[1764697935599,0.01092168,91561.0,91555.0,0.22937026]
[1764697935801,0.0163244,91569.0,91556.0,0.01092227]
[1764697936004,0.01092096,91567.0,91559.0,0.22935994]
[1764697936195,0.01092132,91564.0,91556.0,0.01092227]
[1764697936390,0.22934765,91565.0,91559.0,0.01092191]
[1764697936573,0.22934777,91564.0,91560.0,0.01092179]
[1764697936963,0.0109212,91565.0,91562.0,0.22935232]
[1764697937240,0.0163244,91569.0,91563.0,0.01092144]
[1764697937364,0.21842893,91563.0,91561.0,0.02971]
[1764697937806,0.21844315,91557.0,91552.0,0.01732]
[1764697938316,0.21845051,91554.0,91552.0,0.01732]
[1764697938532,0.0109212,91565.0,91557.0,0.04029]
[1764697938727,0.01092132,91564.0,91558.0,0.04029]
[1764697939030,0.22935666,91561.0,91558.0,0.04029]
[1764697939189,0.21843838,91559.0,91558.0,0.04029]
[1764697939391,0.01092144,91563.0,91558.0,0.25873017]
[1764697939589,0.22933584,91569.0,91564.0,0.01092132]
[1764697939790,0.01091965,91578.0,91566.0,0.01092108]
[1764697939976,0.01092048,91571.0,91568.0,0.05121084]
[1764697940172,0.01092096,91567.0,91559.0,0.05765]
[1764697940513,0.21843838,91559.0,91558.0,0.002]
[1764697940713,0.21843838,91559.0,91558.0,0.003]
[1764697940917,0.24096838,91559.0,91558.0,0.003]
[1764697941317,0.21844076,91558.0,91557.0,0.1464]
[1764697942376,0.21844076,91558.0,91557.0,0.1474]
[1764697942903,0.25843076,91558.0,91557.0,0.1514]
[1764697943589,0.31804076,91558.0,91557.0,0.005]
[1764697943747,0.25843076,91558.0,91557.0,0.005]
[1764697944334,0.31804076,91558.0,91557.0,0.005]
[1764697944651,0.31804076,91558.0,91557.0,0.00472977]
[1764697944868,0.31804076,91558.0,91557.0,0.00572977]
[1764697945084,0.31804076,91558.0,91557.0,0.00172977]
[1764697945289,0.31804076,91558.0,91557.0,0.00372977]
[1764697945518,0.31804076,91558.0,91557.0,0.00072977]
[1764697945730,0.31804076,91558.0,91557.0,0.00172977]
[1764697946044,0.64104076,91558.0,91557.0,0.0048455]
[1764697946243,0.67384842,91558.0,91557.0,0.0048455]
[1764697946454,0.69574945,91558.0,91557.0,0.0048455]
[1764697946752,0.69574945,91558.0,91557.0,0.0018455]
[1764697946949,0.71925651,91558.0,91557.0,0.0008455]
[1764697947397,0.69735548,91558.0,91557.0,0.0008455]
[1764697947726,0.71925651,91558.0,91557.0,0.0008455]
[1764697948589,0.69574945,91558.0,91557.0,0.0008455]
[1764697948972,0.67384842,91558.0,91557.0,0.0008455]
[1764697949384,0.69116842,91558.0,91557.0,0.0008455]
[1764697949652,0.36816842,91558.0,91557.0,0.0008455]
[1764697949825,0.33536076,91558.0,91557.0,0.0008455]
[1764697950372,0.33536076,91558.0,91557.0,0.0018455]
[1764697951017,0.33536076,91558.0,91557.0,0.0028455]
[1764697951191,0.31804076,91558.0,91557.0,0.0028455]
[1764697951397,0.02253,91559.0,91557.0,0.0028455]
[1764697951624,0.02253,91559.0,91557.0,0.22055704]
[1764697951863,0.31804076,91558.0,91557.0,0.00211573]
[1764697952196,0.25843076,91558.0,91557.0,0.00211573]
[1764697952410,0.25843076,91558.0,91557.0,0.00111573]
[1764697952604,0.25817278,91558.0,91557.0,0.00211573]
[1764697952808,0.25817278,91558.0,91557.0,0.00111573]
[1764697953500,0.25817278,91558.0,91557.0,0.00011573]
[1764697953728,0.31410278,91558.0,91557.0,0.00111573]
[1764697954419,0.63710278,91558.0,91557.0,0.00111573]
[1764697954634,0.63710278,91558.0,91557.0,0.00211573]
[1764697956722,0.65442278,91558.0,91557.0,0.00211573]
[1764697958442,0.25817278,91558.0,91557.0,0.00211573]
[1764697958870,0.25817278,91558.0,91557.0,0.0028455]
[1764697959087,0.21844076,91558.0,91557.0,0.0028455]
[1764697960392,0.01092132,91564.0,91557.0,0.0028455]
[1764697960393,0.0109206,91570.0,91557.0,0.0028455]
[1764697960596,0.01092084,91568.0,91563.0,0.01092144]
[1764697960796,0.0109212,91565.0,91561.0,0.02956]
[1764697961006,0.2293429,91566.0,91562.0,0.01092156]
[1764697961423,0.0109206,91570.0,91566.0,0.01092108]
[1764697961589,0.21842168,91566.0,91565.0,0.03727]
[1764697961988,0.21842168,91566.0,91560.0,0.01092179]
[1764697961989,0.01092179,91560.0,91552.0,0.01732]
[1764697962298,0.21842407,91565.0,91557.0,0.01103788]
[1764697962486,0.22934395,91566.0,91557.0,0.01103788]
[1764697962487,0.21844076,91558.0,91557.0,0.00011573]
[1764697962881,0.01076644,91560.0,91557.0,0.03738573]
[1764697962882,0.21843897,91559.0,91557.0,0.03738573]
[1764697963125,0.02724524,91568.0,91560.0,0.01092179]
[1764697963341,0.01092108,91566.0,91560.0,0.22935768]
[1764697963555,0.01092108,91566.0,91558.0,0.05434]
[1764697963556,0.2184365,91560.0,91558.0,0.05434]
[1764697963752,0.01092156,91562.0,91558.0,0.01092203]
[1764697963928,0.22935514,91562.0,91559.0,0.21843783]
[1764697964331,0.21843386,91561.0,91560.0,0.002]
[1764697964554,0.01092108,91566.0,91559.0,0.21843361]
[1764697964759,0.01092132,91564.0,91560.0,0.01092179]
[1764697964966,0.21843132,91562.0,91560.0,0.01092179]
[1764697965189,0.0109206,91570.0,91563.0,0.01092144]
[1764697965391,0.22934408,91566.0,91563.0,0.01092144]
[1764697966009,0.2184297,91563.0,91560.0,0.003]
[1764697966305,0.21843361,91561.0,91560.0,0.003]
[1764697966639,0.21843361,91561.0,91560.0,0.00064218]
[1764697966840,0.21843361,91561.0,91560.0,0.00364218]
[1764697967158,0.21843361,91561.0,91560.0,0.00064218]
[1764697967371,0.25500361,91561.0,91560.0,0.00064218]
[1764697967587,0.25500361,91561.0,91560.0,0.00464218]
[1764697968259,0.21843361,91561.0,91560.0,0.00464218]
[1764697969581,0.31465361,91561.0,91560.0,0.00464218]
[1764697970201,0.21843361,91561.0,91560.0,0.00464218]
[1764697970844,0.01092144,91563.0,91560.0,0.00464218]
[1764697971089,0.21843361,91561.0,91560.0,0.004]
[1764697971506,0.21843361,91561.0,91560.0,0.00464218]
[1764697971826,0.21843361,91561.0,91560.0,0.00164218]
[1764697972178,0.21843361,91561.0,91560.0,0.04191218]
[1764697972404,0.01092036,91572.0,91564.0,0.01092132]
[1764697972579,0.22933299,91570.0,91567.0,0.21841878]
[1764697972779,0.22933299,91570.0,91565.0,0.02758]
[1764697972780,0.21842163,91567.0,91565.0,0.02758]
[1764697972989,0.01091941,91580.0,91569.0,0.03727]
[1764697973223,0.01092036,91572.0,91569.0,0.03727]
[1764697973539,0.22933711,91569.0,91565.0,0.24599947]
[1764697973742,0.22932835,91572.0,91565.0,0.02758]
[1764697973940,0.0109206,91570.0,91565.0,0.0385012]
[1764697974145,0.01091977,91577.0,91571.0,0.03727]
[1764697974344,0.21840327,91574.0,91572.0,0.03727]
[1764697974521,0.21840498,91573.0,91572.0,0.03727]
[1764697974721,0.21841214,91570.0,91569.0,0.001]
[1764697974929,0.25204214,91570.0,91569.0,0.001]
[1764697975149,0.31169214,91570.0,91569.0,0.001]
[1764697975805,0.21841929,91567.0,91566.0,0.1414]
[1764697976013,0.27128369,91567.0,91566.0,0.1414]
[1764697976354,0.33093369,91567.0,91566.0,0.1414]
[1764697977235,0.33093369,91567.0,91566.0,0.1444]
[1764697977636,0.33093369,91567.0,91566.0,0.1454]
[1764697978057,0.27128369,91567.0,91566.0,0.1454]
[1764697978234,0.33093369,91567.0,91566.0,0.1454]
[1764697978433,0.33093369,91567.0,91566.0,0.14586701]
[1764697978895,0.33093369,91567.0,91566.0,0.14555701]
[1764697979178,0.27128369,91567.0,91566.0,0.00446701]
[1764697980158,0.27128369,91567.0,91566.0,0.00346701]
[1764697980364,0.01092072,91569.0,91566.0,0.00046701]
[1764697980538,0.25498929,91567.0,91566.0,0.001]
[1764697980740,0.25498929,91567.0,91566.0,0.004]
[1764697981738,0.31463929,91567.0,91566.0,0.004]
[1764697981886,0.63763929,91567.0,91566.0,0.003]
[1764697982091,0.74734435,91567.0,91566.0,0.003]
[1764697982251,0.74734435,91567.0,91566.0,0.001]
[1764697982252,0.68307835,91567.0,91566.0,0.001]
[1764697982653,0.65954032,91567.0,91566.0,0.002]
[1764697982876,0.21844076,91558.0,91557.0,0.00011573]
[1764697983079,0.25207076,91558.0,91557.0,0.00011573]
[1764697983279,0.31172076,91558.0,91557.0,0.00011573]
[1764697985282,0.31172076,91558.0,91557.0,0.00111573]
[1764697985688,0.65662179,91558.0,91557.0,0.00111573]
[1764697985895,0.65662179,91558.0,91557.0,0.00211573]
[1764697986305,0.68015727,91558.0,91557.0,0.0028455]
[1764697986500,0.68015727,91558.0,91557.0,0.0018455]
[1764697986721,0.68015727,91558.0,91557.0,0.0008455]
[1764697987498,0.65662179,91558.0,91557.0,0.0008455]
[1764697987937,0.31172076,91558.0,91557.0,0.0008455]
[1764697988141,0.32904076,91558.0,91557.0,0.0008455]
[1764697988299,0.35094179,91558.0,91557.0,0.0008455]
[1764697989041,0.31172076,91558.0,91557.0,0.0008455]
[1764697989242,0.32904076,91558.0,91557.0,0.0008455]
[1764697989602,0.31172076,91558.0,91557.0,0.0008455]
[1764697990387,0.31172076,91558.0,91557.0,0.0018455]
[1764697990542,0.25207076,91558.0,91557.0,0.0018455]
[1764697991158,0.21844076,91558.0,91557.0,0.0018455]
[1764697991357,0.21844076,91558.0,91557.0,0.0028455]
[1764697991741,0.25586076,91558.0,91557.0,0.0028455]
[1764697992342,0.21844076,91558.0,91557.0,0.0028455]
[1764697992564,0.25586076,91558.0,91557.0,0.0028455]
[1764697992791,0.30789076,91558.0,91557.0,0.0028455]
[1764697993359,0.25586076,91558.0,91557.0,0.0028455]
[1764697993559,0.30789076,91558.0,91557.0,0.0028455]
[1764697994497,0.34711179,91558.0,91557.0,0.0028455]
[1764697995045,0.34711179,91558.0,91557.0,0.0018455]
[1764697995611,0.34711179,91558.0,91557.0,0.0008455]
[1764697995823,0.43315485,91558.0,91557.0,0.0008455]
[1764697996100,0.43315485,91558.0,91557.0,1e-08]
[1764697997083,0.46254708,91558.0,91557.0,1e-08]
[1764697997717,0.46354708,91558.0,91557.0,1e-08]
[1764697998078,0.44622708,91558.0,91557.0,1e-08]
[1764697998276,0.41683485,91558.0,91557.0,1e-08]
[1764697998501,0.43415485,91558.0,91557.0,1e-08]
[1764697998693,0.41063478,91558.0,91557.0,1e-08]
[1764697999317,0.37141375,91558.0,91557.0,1e-08]
[1764697999520,0.73363478,91558.0,91557.0,1e-08]
[1764698000401,0.73263478,91558.0,91557.0,1e-08]
[1764698000607,0.71531478,91558.0,91557.0,1e-08]
[1764698000813,0.73363478,91558.0,91557.0,1e-08]
[1764698001007,0.65379179,91558.0,91557.0,1e-08]
[1764698001208,0.67111179,91558.0,91557.0,1e-08]
[1764698003093,0.65379179,91558.0,91557.0,1e-08]
[1764698003299,0.64921076,91558.0,91557.0,1e-08]
[1764698003515,0.59718076,91558.0,91557.0,1e-08]
[1764698003754,0.27418076,91558.0,91557.0,1e-08]
[1764698003953,0.25686076,91558.0,91557.0,1e-08]
[1764698004116,0.21944076,91558.0,91557.0,1e-08]
[1764698004471,0.25686076,91558.0,91557.0,1e-08]
[1764698005075,0.25586076,91558.0,91557.0,0.00100001]
[1764698005283,0.01241,91559.0,91557.0,0.21944316]
[1764698005495,0.21844076,91558.0,91557.0,0.002]
[1764698005636,0.01092179,91560.0,91557.0,0.002]
[1764698005834,0.21844076,91558.0,91557.0,0.002]
[1764698006435,0.21844076,91558.0,91557.0,0.001]
[1764698006436,0.23085076,91558.0,91557.0,0.001]
[1764698006642,0.21845134,91554.0,91551.0,0.01092287]
[1764698006839,0.21845282,91553.0,91551.0,0.01097754]
[1764698007429,0.21845272,91553.0,91551.0,0.01097754]
[1764698007905,0.21845272,91553.0,91551.0,0.01197754]
[1764698008042,0.21845272,91553.0,91551.0,0.00305467]
[1764698008243,0.2184507,91554.0,91551.0,0.01397754]
[1764698008452,0.24177295,91558.0,91554.0,0.21844976]
[1764698008710,0.22936913,91556.0,91553.0,0.22937532]
[1764698009097,0.0109206,91570.0,91563.0,0.01092144]
[1764698009433,0.22933839,91568.0,91564.0,0.01092132]
[1764698009631,0.22932628,91573.0,91565.0,0.22934481]
[1764698009790,0.22933073,91571.0,91566.0,0.22934171]
[1764698009993,0.01092072,91569.0,91565.0,0.0109212]
[1764698010202,0.01092013,91574.0,91569.0,0.22933499]
[1764698010383,0.01092013,91574.0,91567.0,0.218418]
[1764698010384,0.22933123,91571.0,91567.0,0.218418]
[1764698010565,0.22933123,91571.0,91566.0,0.01092108]
[1764698010566,0.22933538,91569.0,91566.0,0.21842131]
[1764698010769,0.22933924,91568.0,91562.0,0.02764]
[1764698011001,0.21842422,91565.0,91562.0,0.25699219]
[1764698011327,0.22934542,91565.0,91562.0,0.02764]
[1764698011625,0.01092072,91569.0,91567.0,0.001]
[1764698011824,0.22933588,91569.0,91567.0,0.001]
[1764698012529,0.24566028,91569.0,91567.0,0.001]
[1764698012713,0.08945,91568.0,91567.0,0.001]
[1764698012913,0.01092179,91560.0,91552.0,0.01092275]
[1764698013231,0.22936095,91559.0,91554.0,0.01092251]
[1764698013387,0.01092144,91563.0,91559.0,0.01092191]
[1764698013575,0.01092156,91562.0,91559.0,0.03528]
[1764698013778,0.21845508,91552.0,91549.0,0.02787359]
[1764698013979,0.22937356,91554.0,91552.0,0.001]
[1764698014186,0.21845269,91553.0,91552.0,0.003]
[1764698014386,0.21845508,91552.0,91549.0,0.00023359]
[1764698015063,0.25215508,91552.0,91549.0,0.00023359]
[1764698015785,0.26847948,91552.0,91551.0,0.00305467]
[1764698015928,0.32015948,91552.0,91551.0,5.467e-05]
[1764698016128,0.32015948,91552.0,91551.0,0.00105467]
[1764698016337,0.32015948,91552.0,91551.0,0.00305467]
[1764698016538,0.32015948,91552.0,91551.0,0.00105467]
[1764698016740,0.32015948,91552.0,91551.0,5.467e-05]
[1764698016939,0.26847948,91552.0,91551.0,0.00305467]
[1764698017143,0.01092191,91559.0,91551.0,0.03683467]
[1764698017345,0.21845508,91552.0,91551.0,0.00305467]
[1764698017546,0.22937295,91554.0,91551.0,0.00305467]
[1764698017760,0.01878203,91558.0,91551.0,0.00305467]
[1764698017956,0.2293658,91557.0,91553.0,0.21845253]
[1764698018161,0.01092251,91554.0,91551.0,0.00205467]
[1764698018342,0.22937304,91554.0,91551.0,0.00205467]
[1764698018541,0.01092239,91555.0,91552.0,0.22937783]
[1764698018743,0.00786,91558.0,91554.0,0.22937048]
[1764698019028,0.01092191,91559.0,91552.0,0.01092275]
[1764698019179,0.01092191,91559.0,91554.0,0.01092251]
[1764698019496,0.01092203,91558.0,91552.0,0.2293755]
[1764698019702,0.01092096,91567.0,91559.0,0.01092191]
[1764698019902,0.01092144,91563.0,91559.0,0.03378]
[1764698020139,0.01092132,91564.0,91560.0,0.22935674]
[1764698020335,0.21841847,91568.0,91563.0,0.03378]
[1764698020537,0.0163244,91569.0,91565.0,0.0109212]
[1764698020665,0.0163244,91569.0,91566.0,0.21842055]
[1764698020865,0.03651048,91571.0,91566.0,0.22934053]
[1764698021103,0.21841029,91571.0,91568.0,0.01092084]
[1764698021351,0.21841029,91571.0,91567.0,0.22933903]
[1764698021352,0.01092024,91573.0,91570.0,0.03378]
[1764698021519,0.0109206,91570.0,91564.0,0.01092132]
[1764698021718,0.22933323,91570.0,91566.0,0.22934116]
[1764698021917,0.01092036,91572.0,91569.0,0.01092072]
[1764698022144,0.01092036,91572.0,91569.0,0.22933512]
[1764698022456,0.22933055,91571.0,91568.0,0.01092084]
[1764698022599,0.01092036,91572.0,91569.0,0.2293352]
[1764698022794,0.01092048,91571.0,91568.0,0.01092084]
[1764698022999,0.03650905,91583.0,91577.0,0.22931355]
[1764698023235,0.21839067,91579.0,91578.0,0.02529]
[1764698023473,0.01091905,91583.0,91578.0,0.02529]
[1764698023673,0.21838632,91581.0,91578.0,0.06310965]
[1764698023885,0.22930498,91582.0,91578.0,0.28150171]
[1764698024103,0.22930538,91581.0,91578.0,0.27058224]
[1764698024293,0.22930507,91582.0,91579.0,0.21839067]
[1764698024698,0.0109181,91591.0,91582.0,0.01091917]
[1764698024901,0.02724214,91594.0,91587.0,0.03620858]
[1764698025077,0.01091822,91590.0,91587.0,0.05907]
[1764698025279,0.01091893,91584.0,91572.0,0.02529]
[1764698025498,0.01091893,91584.0,91580.0,0.21838594]
[1764698025499,0.00038547,91584.0,91580.0,0.21838594]
[1764698025697,0.00038547,91584.0,91579.0,0.001]
[1764698025698,0.22930281,91582.0,91579.0,0.001]
[1764698025896,0.21838881,91580.0,91578.0,0.01941]
[1764698026166,0.0113044,91584.0,91580.0,0.01091941]
[1764698026389,0.21838188,91583.0,91580.0,0.21838686]
[1764698026585,0.21838188,91583.0,91580.0,0.001]
[1764698027027,0.22930083,91583.0,91580.0,0.21938805]
[1764698027241,0.22930083,91583.0,91580.0,0.21838757]
[1764698027402,0.01091905,91583.0,91580.0,0.21838823]
[1764698027608,0.01091905,91583.0,91580.0,0.22930764]
[1764698027806,0.01091917,91582.0,91579.0,0.01091953]
[1764698028007,0.01091917,91582.0,91580.0,0.21838769]
[1764698028310,0.22930519,91581.0,91580.0,0.001]
[1764698028509,0.21838866,91580.0,91578.0,0.01841]
[1764698028935,0.22930519,91581.0,91578.0,0.02932965]
[1764698029452,0.00038547,91584.0,91582.0,0.2183826]
[1764698029610,0.00038547,91584.0,91583.0,0.03378]
[1764698029810,0.00038547,91584.0,91583.0,0.10783175]
[1764698030010,0.00038547,91584.0,91583.0,0.08589]
[1764698032683,0.00038547,91584.0,91583.0,0.43083175]
[1764698032879,0.00038547,91584.0,91583.0,0.40889]
[1764698034623,0.00038547,91584.0,91583.0,0.10321]
[1764698034874,0.00038547,91584.0,91583.0,0.12504811]
[1764698035440,0.00038547,91584.0,91583.0,0.10321]
[1764698036854,0.00038547,91584.0,91583.0,0.34342925]
[1764698037055,0.00038547,91584.0,91583.0,0.32159114]
[1764698037891,0.00038547,91584.0,91583.0,0.34353289]
[1764698038750,0.00038547,91584.0,91583.0,0.32159114]
[1764698039501,0.00038547,91584.0,91583.0,0.66653289]
[1764698040695,0.02559,91622.0,91583.0,0.64459114]
[1764698040882,0.0024716,91626.0,91622.0,0.0109144]
[1764698041077,0.21828445,91624.0,91615.0,0.01732]
[1764698041417,0.01091405,91625.0,91610.0,0.01091583]
[1764698041597,0.0024716,91626.0,91623.0,0.01091429]
[1764698041803,0.0024716,91626.0,91625.0,0.25023103]
[1764698042012,0.0024716,91626.0,91616.0,0.02269512]